bitfinex/quotes_ETHUSD_20251108
["timestamp","ask_amount","ask_price","bid_price","bid_amount"]
[1762577662720,8.79221585,3469.7,3469.6,0.001]
[1762577663023,8.90772813,3469.7,3469.6,0.001]
[1762577663633,3.28784676,3469.4,3469.3,0.001]
[1762577663795,4.81182924,3469.4,3469.3,0.001]
[1762577664040,5.17642924,3469.4,3469.3,0.001]
[1762577666398,7.53527252,3468.7,3468.6,0.4575]
[1762577666613,2.88333809,3468.3,3468.1,0.02]
[1762577666803,2.88334006,3468.2,3468.1,0.02]
[1762577667199,2.88334006,3468.2,3468.1,0.9664]
[1762577669213,4.29018076,3468.2,3468.1,0.5089]
[1762577669419,4.29018076,3468.2,3468.1,0.02]
[1762577669729,4.65478076,3468.2,3468.1,0.02]
[1762577670030,4.29018076,3468.2,3468.1,0.02]
[1762577670235,4.65298076,3468.2,3468.1,1e-08]
[1762577671567,4.65298076,3468.2,3467.1,0.02]
[1762577671568,3.28967566,3467.2,3467.1,0.02]
[1762577671836,3.28967566,3467.2,3465.7,0.144]
[1762577671837,3.29157566,3467.2,3465.7,0.144]
[1762577671986,3.29157566,3467.2,3464.2,2.03898263]
[1762577671987,7.53735184,3466.2,3466.1,0.2164]
[1762577672191,4.24684409,3466.6,3466.1,0.6739]
[1762577672390,2.88492052,3466.3,3466.2,0.476]
[1762577672827,2.88492052,3466.3,3466.2,0.9612]
[1762577673306,3.29042452,3466.3,3466.2,0.4852]
[1762577673531,3.29042452,3466.3,3466.2,0.9612]
[1762577674231,7.53726861,3466.3,3466.2,0.4852]
[1762577674528,8.57948042,3466.3,3466.2,0.9612]
[1762577675312,7.53726861,3466.3,3466.2,0.9612]
[1762577676037,2.88484946,3466.4,3466.2,0.9612]
[1762577676038,2.88489256,3466.4,3466.2,0.9612]
[1762577676240,2.88492052,3466.3,3466.1,0.2164]
[1762577676619,2.88492052,3466.3,3466.2,0.4852]
[1762577676827,2.88492052,3466.3,3466.2,0.9612]
[1762577677225,0.405504,3466.8,3466.2,0.9612]
[1762577677410,3.24851462,3467.6,3466.7,0.4852]
[1762577677606,2.88483729,3466.4,3466.3,0.476]
[1762577678000,2.88483729,3466.4,3466.3,0.9612]
[1762577678526,2.88480922,3466.5,3466.3,0.9612]
[1762577678726,2.88480922,3466.5,3466.4,0.476]
[1762577678924,2.88480922,3466.5,3466.4,0.9612]
[1762577680626,2.88467185,3466.6,3466.4,0.9612]
[1762577680822,2.88467185,3466.6,3466.5,0.476]
[1762577681023,2.88500375,3466.2,3466.1,0.2164]
[1762577681222,0.405504,3466.5,3466.1,0.2164]
[1762577681452,2.88494072,3466.3,3466.1,0.2164]
[1762577681624,2.88500375,3466.2,3466.1,0.2164]
[1762577682249,2.88500375,3466.2,3466.1,1.136]
[1762577682747,3.29027143,3466.5,3466.1,1.136]
[1762577682913,2.88483729,3466.4,3466.2,0.4681]
[1762577683313,2.88483729,3466.4,3466.3,0.4515]
[1762577683546,2.88483729,3466.4,3466.3,0.9196]
[1762577683709,3.27152596,3466.5,3466.3,0.9196]
[1762577683912,2.88480693,3466.5,3466.4,0.9196]
[1762577684122,0.405504,3466.9,3466.4,0.9196]
[1762577684123,2.88458437,3466.8,3466.4,0.9196]
[1762577684326,1.71972437,3467.3,3466.8,0.4515]
[1762577684648,4.60381669,3467.3,3467.2,0.4515]
[1762577684949,4.60381669,3467.3,3466.5,0.4681]
[1762577684950,0.144,3467.2,3466.5,0.4681]
[1762577685159,2.88445449,3466.9,3466.5,0.4681]
[1762577685648,0.86681026,3467.8,3466.8,0.4515]
[1762577685811,2.88367264,3467.8,3467.7,0.4515]
[1762577686145,2.88435436,3467.0,3466.6,0.4681]
[1762577686312,3.2893106,3467.7,3466.9,0.4515]
[1762577686513,2.88433804,3467.0,3466.9,0.4515]
[1762577687022,0.002,3467.1,3466.9,0.9196]
[1762577687227,2.88626975,3467.1,3467.0,0.4515]
[1762577687429,2.88626975,3467.1,3467.0,0.9196]
[1762577688137,0.002,3467.1,3467.0,0.9196]
[1762577689255,2.88625485,3467.1,3467.0,0.9196]
[1762577689418,0.002,3467.1,3467.0,0.9196]
[1762577689825,2.88625485,3467.1,3467.0,0.9196]
[1762577692150,2.88625485,3467.1,3467.0,0.4515]
[1762577692459,2.88625485,3467.1,3467.0,0.9196]
[1762577693077,2.88473868,3466.6,3466.5,0.4681]
[1762577693430,2.88473868,3466.6,3466.5,0.4515]
[1762577693958,2.88473868,3466.6,3466.5,0.9196]
[1762577694120,2.88473868,3466.6,3466.5,0.4515]
[1762577694766,2.88483729,3466.4,3466.3,0.4681]
[1762577694926,2.88500375,3466.2,3466.1,0.2174]
[1762577695131,2.88500375,3466.2,3466.1,0.6855]
[1762577695463,2.88500375,3466.2,3466.1,1.137]
[1762577695675,2.88493728,3466.3,3466.1,1.137]
[1762577695967,0.405504,3466.8,3466.3,0.4515]
[1762577696271,3.75105793,3467.3,3466.2,0.4681]
[1762577696272,0.86696056,3467.3,3466.2,0.4681]
[1762577696437,0.002,3467.1,3466.2,0.4681]
[1762577696638,2.88465544,3466.7,3466.2,0.4681]
[1762577696826,2.88483203,3466.5,3466.2,0.4681]
[1762577697022,2.88464333,3466.7,3466.2,0.4681]
[1762577697259,2.88483752,3466.4,3466.2,0.4681]
[1762577697472,2.88492052,3466.3,3466.2,0.4681]
[1762577697857,2.88482011,3466.5,3466.2,0.9196]
[1762577698170,2.88492052,3466.3,3466.2,0.4681]
[1762577698354,3.02900375,3466.2,3466.1,0.2174]
[1762577698746,3.02900375,3466.2,3466.1,0.6689]
[1762577699100,0.144,3466.2,3466.1,1.137]
[1762577700148,3.02900375,3466.2,3466.1,1.137]
[1762577700334,0.144,3466.2,3466.1,1.137]
[1762577701465,3.02900375,3466.2,3466.1,1.137]
[1762577701846,0.144,3466.2,3466.1,1.137]
[1762577702169,3.02900375,3466.2,3466.1,0.6689]
[1762577702378,8.52049625,3466.2,3466.1,0.021]
[1762577702869,4.2670739,3466.2,3466.1,0.021]
[1762577704239,4.6298739,3466.2,3466.1,0.021]
[1762577705742,1.74487015,3466.2,3465.1,0.02]
[1762577705942,2.88583631,3465.2,3465.1,0.02]
[1762577706366,2.88554269,3465.6,3465.1,0.9468]
[1762577706367,0.405504,3465.6,3465.1,0.9468]
[1762577706568,2.88575303,3465.3,3465.2,0.4579]
[1762577707777,2.88568362,3465.4,3465.2,0.4579]
[1762577708079,2.88575303,3465.3,3465.2,0.4079]
[1762577708278,3.02983631,3465.2,3465.1,0.02]
[1762577708494,3.02983631,3465.2,3465.1,0.4889]
[1762577708662,3.02983631,3465.2,3465.1,0.9468]
[1762577708846,0.144,3465.2,3465.1,0.9468]
[1762577709972,1.1768169,3466.1,3465.1,0.9468]
[1762577710167,2.88550323,3465.6,3465.5,0.4579]
[1762577713259,0.405504,3465.9,3465.5,0.4579]
[1762577713566,0.405504,3466.1,3465.5,0.9268]
[1762577713772,2.88550323,3465.6,3465.5,0.9268]
[1762577714991,2.88550323,3465.6,3465.5,0.4579]
[1762577715188,2.88583631,3465.2,3465.1,0.02]
[1762577715398,2.88993631,3465.2,3465.1,0.02]
[1762577719212,3.29544031,3465.2,3465.1,0.02]
[1762577719409,3.71004031,3465.2,3465.1,0.02]
[1762577719609,3.29544031,3465.2,3465.1,0.02]
[1762577719903,3.91355132,3465.2,3465.1,0.02]
[1762577720923,4.04345132,3465.2,3465.1,0.021]
[1762577721129,3.90945132,3465.2,3465.1,0.4789]
[1762577721508,4.36214153,3465.2,3465.1,0.4789]
[1762577721842,4.36214153,3465.2,3465.1,0.021]
[1762577723245,4.49614153,3465.2,3465.1,0.021]
[1762577725247,4.90794153,3465.2,3465.1,0.021]
[1762577725618,4.49614153,3465.2,3465.1,0.021]
[1762577725936,4.04345132,3465.2,3465.1,0.021]
[1762577726305,8.05022054,3465.2,3465.1,0.021]
[1762577726503,8.83346368,3465.2,3465.1,0.021]
[1762577726726,8.46202054,3465.2,3465.1,0.021]
[1762577729321,8.91474084,3465.2,3465.1,0.021]
[1762577730112,6.89343858,3464.2,3464.1,0.02]
[1762577730316,6.89343858,3464.2,3464.1,0.4889]
[1762577730517,6.89343858,3464.2,3464.1,0.9468]
[1762577731761,4.00676922,3464.2,3464.1,0.9468]
[1762577732155,6.89343858,3464.2,3464.1,0.9468]
[1762577732454,4.00676922,3464.2,3464.1,0.9468]
[1762577732855,6.89343858,3464.2,3464.1,0.9468]
[1762577733351,4.00676922,3464.2,3464.1,0.9468]
[1762577733658,6.89343858,3464.2,3464.1,0.9468]
[1762577734165,0.405504,3464.8,3464.1,0.9468]
[1762577734325,2.88591959,3465.1,3465.0,0.472]
[1762577734662,2.88591959,3465.1,3464.2,0.466]
[1762577734663,2.88600288,3465.0,3464.2,0.466]
[1762577734856,2.88600288,3465.0,3464.1,0.02]
[1762577734857,2.88633608,3464.6,3464.5,0.466]
[1762577735367,2.88633608,3464.6,3464.5,0.938]
[1762577735750,2.88666936,3464.2,3464.1,0.02]
[1762577735951,6.89343858,3464.2,3464.1,0.486]
[1762577736155,6.89343858,3464.2,3464.1,0.958]
[1762577737143,6.89343858,3464.2,3464.1,0.492]
[1762577737563,6.89343858,3464.2,3464.1,0.958]
[1762577740778,6.89343858,3464.2,3464.1,0.959]
[1762577741652,6.89343858,3464.2,3464.1,0.493]
[1762577741855,7.87143281,3464.2,3464.1,0.493]
[1762577742749,7.87143281,3464.2,3464.1,0.9774]
[1762577742949,6.89343858,3464.2,3464.1,0.9774]
[1762577744690,4.00676922,3464.5,3464.1,0.9774]
[1762577744865,6.89319769,3464.5,3464.4,0.4954]
[1762577745067,2.88666936,3464.2,3464.1,0.021]
[1762577745298,2.88666936,3464.2,3464.1,0.5054]
[1762577745491,2.88666936,3464.2,3464.1,1.0008]
[1762577746501,4.00676922,3464.5,3464.1,1.0008]
[1762577746680,6.89320097,3464.5,3464.4,0.4954]
[1762577747205,7.8711529,3464.5,3464.4,0.4954]
[1762577747570,7.8711529,3464.5,3464.4,0.9644]
[1762577747875,6.89320097,3464.5,3464.4,0.9644]
[1762577748590,6.89320097,3464.5,3464.4,0.4954]
[1762577748976,4.00676922,3464.5,3464.4,0.9644]
[1762577749180,6.89309454,3464.7,3464.4,0.9644]
[1762577749380,4.00676922,3464.7,3464.5,0.469]
[1762577749576,3.61689653,3464.9,3464.6,0.4754]
[1762577749775,6.89285539,3464.9,3464.8,0.4754]
[1762577750469,6.89285539,3464.9,3464.8,0.9444]
[1762577751109,0.549504,3464.8,3464.1,0.021]
[1762577751313,4.00676922,3464.3,3464.2,0.469]
[1762577751608,6.89335525,3464.3,3464.2,0.469]
[1762577751807,6.89335525,3464.3,3464.2,0.9444]
[1762577753076,4.00676922,3464.3,3464.2,0.9444]
[1762577754513,6.89335525,3464.3,3464.2,0.9444]
[1762577754717,4.00676922,3464.3,3464.2,0.9444]
[1762577755220,6.89335525,3464.3,3464.2,0.9444]
[1762577755577,4.00676922,3464.3,3464.2,0.9444]
[1762577756481,6.89335525,3464.3,3464.2,0.9444]
[1762577757109,4.00676922,3464.3,3464.2,0.9444]
[1762577757910,6.89335525,3464.3,3464.2,0.9444]
[1762577758432,6.89335525,3464.3,3464.2,0.4754]
[1762577759913,4.00676922,3464.3,3464.2,0.4754]
[1762577760142,2.88730417,3463.5,3463.4,0.1907]
[1762577760435,2.88741951,3463.3,3463.2,0.469]
[1762577760592,6.89418873,3463.3,3463.2,0.469]
[1762577760932,6.89418873,3463.3,3463.2,0.9444]
[1762577761138,2.88750288,3463.2,3463.1,0.02]
[1762577761498,3.02430288,3463.2,3463.1,0.02]
[1762577762198,4.00676922,3463.3,3463.1,0.9518]
[1762577762399,4.00676922,3463.4,3463.2,0.4587]
[1762577762614,6.89410536,3463.4,3463.3,0.4587]
[1762577762808,4.00676922,3463.4,3463.1,0.2161]
[1762577763013,4.00676922,3463.4,3463.3,0.4587]
[1762577763198,2.88717523,3463.6,3463.3,0.4587]
[1762577763199,1.39256753,3464.3,3463.3,0.9151]
[1762577763397,4.00676922,3463.6,3463.5,0.4587]
[1762577763846,4.00676922,3463.6,3463.5,0.9151]
[1762577764015,6.89372906,3463.9,3463.5,0.9151]
[1762577764213,4.00676922,3463.9,3463.6,0.4564]
[1762577764538,4.00676922,3463.9,3463.8,0.4587]
[1762577764927,4.00676922,3463.9,3463.8,0.9151]
[1762577765301,4.00676922,3463.9,3463.1,0.2161]
[1762577765302,2.88705831,3463.8,3463.1,0.2161]
[1762577765537,4.00676922,3463.6,3463.1,0.6725]
[1762577765740,4.00676922,3463.6,3463.2,2.88749073]
[1762577766059,4.00676922,3463.6,3463.5,0.4587]
[1762577766422,4.00676922,3463.6,3463.5,0.9151]
[1762577767966,6.89393863,3463.6,3463.5,0.9151]
[1762577768488,4.00676922,3463.6,3463.5,0.9151]
[1762577768758,4.00676922,3464.4,3463.5,0.9151]
[1762577768759,4.00676922,3463.8,3463.5,0.9151]
[1762577768916,4.00676922,3463.8,3463.6,0.4564]
[1762577769113,4.00676922,3463.8,3463.7,0.4587]
[1762577769314,4.00676922,3463.8,3463.7,0.9151]
[1762577769754,2.88680757,3464.1,3463.7,0.9151]
[1762577769914,4.00676922,3463.9,3463.8,0.4564]
[1762577770313,4.00676922,3463.9,3463.8,0.9151]
[1762577776440,2.88678055,3464.1,3463.8,0.9151]
[1762577776760,4.65015382,3464.3,3464.0,0.4587]
[1762577776930,2.88675269,3464.1,3464.0,0.4587]
[1762577777132,2.88875269,3464.1,3464.0,0.4587]
[1762577777435,3.03083602,3464.0,3463.1,0.2171]
[1762577777638,0.002,3464.1,3463.1,0.2171]
[1762577777639,4.2589875,3463.5,3463.1,0.2171]
[1762577777840,2.88748412,3463.3,3463.1,0.2171]
[1762577778039,2.88750288,3463.2,3463.1,0.021]
[1762577778630,2.88750288,3463.2,3463.1,0.4797]
[1762577778859,4.68488625,3463.5,3463.1,0.4797]
[1762577779062,4.2589875,3463.5,3463.4,0.4587]
[1762577779225,7.14630335,3463.5,3463.1,0.6735]
[1762577779562,4.2589875,3463.5,3463.4,0.4587]
[1762577779870,0.144,3463.7,3463.4,3.34600234]
[1762577780034,0.144,3463.7,3463.6,0.4587]
[1762577780561,0.144,3463.7,3463.6,0.9151]
[1762577780780,0.144,3463.7,3463.6,0.4587]
[1762577781081,0.002,3464.1,3463.6,0.9151]
[1762577781277,0.002,3464.1,3464.0,0.4587]
[1762577781458,2.88688112,3464.0,3463.6,0.4564]
[1762577782274,4.2589875,3463.9,3463.1,0.2171]
[1762577782474,4.2589875,3463.5,3463.1,0.2171]
[1762577782677,4.2589875,3463.5,3463.1,0.021]
[1762577782678,2.88750288,3463.2,3463.1,0.021]
[1762577783546,3.83890688,3463.2,3463.1,0.021]
[1762577784383,3.83890688,3463.2,3461.0,0.1961]
[1762577784384,3.29384089,3462.2,3461.0,0.1961]
[1762577784563,0.0041,3462.2,3461.6,0.4564]
[1762577784875,2.88833689,3462.2,3461.6,0.4564]
[1762577785043,2.88747519,3463.3,3462.1,0.6748]
[1762577785253,3.29334043,3462.8,3462.3,0.4587]
[1762577785449,2.88817005,3462.4,3462.1,0.2161]
[1762577785672,3.30013689,3462.2,3462.1,0.02]
[1762577785845,1.19282711,3462.8,3462.1,0.02]
[1762577786178,3.02233689,3462.2,3462.1,0.02]
[1762577786395,2.88833689,3462.2,3462.1,0.02]
[1762577786899,3.02513689,3462.2,3462.1,0.02]
[1762577787255,3.65737776,3462.2,3462.1,0.02]
[1762577787950,4.52536675,3462.2,3462.1,0.02]
[1762577788374,1.63702986,3462.2,3462.1,0.02]
[1762577788569,1.00478899,3462.2,3462.1,0.02]
[1762577788891,0.86798899,3462.2,3462.1,0.4787]
[1762577790395,0.4146,3463.8,3462.5,2.88805]
[1762577790550,2.99749836,3463.9,3462.7,0.4587]
[1762577790551,0.8677806,3463.4,3462.7,0.4587]
[1762577790756,0.8677806,3463.4,3462.8,0.4564]
[1762577791090,0.1105,3463.9,3463.3,0.6548]
[1762577791378,2.88700884,3463.8,3463.3,0.1961]
[1762577791579,3.37228887,3463.8,3463.3,0.1961]
[1762577791786,3.37228887,3463.8,3463.4,0.4564]
[1762577791787,0.48528003,3463.8,3463.4,0.4564]
[1762577791974,0.144,3463.4,3463.3,0.1961]
[1762577792374,0.144,3463.4,3463.3,0.6548]
[1762577793081,2.88742946,3463.3,3462.8,0.4861]
[1762577793298,0.144,3462.8,3462.2,0.144]
[1762577793462,2.88750352,3463.2,3462.6,0.4861]
[1762577793646,3.46498026,3463.2,3462.7,0.4824]
[1762577793850,2.88759763,3463.1,3462.7,0.4824]
[1762577794054,2.887679,3463.0,3462.7,0.9685]
[1762577794248,2.88761474,3463.1,3462.7,0.4824]
[1762577794688,2.88761474,3463.1,3462.7,0.9685]
[1762577795202,2.88761474,3463.1,3462.8,0.4861]
[1762577796106,2.88749821,3463.3,3463.0,0.4824]
[1762577796310,2.88756857,3463.2,3462.8,0.4861]
[1762577797329,0.62551927,3463.5,3462.1,0.2161]
[1762577797492,0.144,3462.6,3462.4,0.4861]
[1762577797881,0.144,3462.6,3462.5,0.4824]
[1762577798527,0.144,3462.6,3462.1,0.02]
[1762577798528,3.46921137,3462.6,3462.1,0.02]
[1762577798683,2.88817336,3462.4,3462.1,0.02]
[1762577798883,2.88825721,3462.3,3462.1,0.02]
[1762577799580,2.88833689,3462.2,3462.1,0.02]
[1762577799779,3.46598065,3462.2,3462.1,0.02]
[1762577800212,3.60548065,3462.2,3462.1,0.02]
[1762577803216,0.71714376,3462.2,3462.1,0.02]
[1762577803426,0.45304896,3462.3,3462.1,0.6977]
[1762577803613,4.05918081,3462.6,3462.2,0.496]
[1762577803817,1.17114368,3462.6,3462.2,0.496]
[1762577804129,0.144,3462.2,3462.1,0.02]
[1762577804624,0.144,3462.2,3462.1,0.6968]
[1762577804793,0.144,3462.2,3462.1,1.1928]
[1762577804991,0.144,3462.2,3462.1,4.48935876]
[1762577805827,0.144,3462.2,3462.1,0.02]
[1762577806316,3.44693689,3462.2,3462.1,0.02]
[1762577807526,3.85244089,3462.2,3462.1,0.02]
[1762577808629,3.43784089,3462.2,3462.1,0.02]
[1762577808831,3.43784089,3462.2,3461.1,0.214]
[1762577808832,0.405504,3462.0,3461.1,0.214]
[1762577809007,0.405504,3462.0,3461.1,0.7051]
[1762577809212,2.88893602,3461.5,3461.1,0.7051]
[1762577809537,2.88900748,3461.4,3461.1,0.214]
[1762577809733,2.88900748,3461.4,3461.1,0.02]
[1762577811332,0.820104,3461.8,3461.3,0.4504]
[1762577811333,0.405504,3461.8,3461.3,0.4504]
[1762577811524,3.29418834,3461.8,3461.1,0.214]
[1762577811725,2.88892704,3461.5,3461.1,0.214]
[1762577812250,2.88892704,3461.5,3461.1,0.7051]
[1762577812749,2.88892704,3461.5,3461.1,0.7061]
[1762577812949,2.88901314,3461.4,3461.1,0.7061]
[1762577813153,2.88893438,3461.5,3461.1,0.7061]
[1762577815350,2.88900581,3461.4,3461.1,0.7061]
[1762577815748,0.34212883,3461.7,3461.1,0.7061]
[1762577815951,2.88893274,3461.5,3461.3,0.4504]
[1762577816155,0.532604,3462.4,3461.6,0.4504]
[1762577816351,2.88875408,3461.7,3461.6,0.4504]
[1762577817457,2.88869128,3461.8,3461.6,0.4504]
[1762577817830,0.86806937,3462.1,3461.7,0.4504]
[1762577818228,2.88867063,3461.8,3461.7,0.4504]
[1762577819163,0.86806937,3462.1,3461.7,0.4504]
[1762577819346,0.144,3461.7,3461.1,0.7061]
[1762577819547,0.144,3461.7,3461.1,3.59535252]
[1762577819743,2.88850375,3462.0,3461.6,0.4504]
[1762577819971,3.07000605,3462.1,3461.9,0.4504]
[1762577820133,0.1271,3462.4,3462.0,0.4504]
[1762577820469,0.144,3461.6,3461.2,3.380208]
[1762577820652,0.144,3461.6,3461.3,0.4911]
[1762577820967,0.144,3461.6,3461.5,0.4504]
[1762577821468,0.144,3461.6,3461.5,4.50238498]
[1762577821659,0.1271,3462.4,3461.5,4.50238498]
[1762577821660,0.144,3461.8,3461.5,1.613464]
[1762577821856,0.144,3461.8,3461.7,2.88875408]
[1762577822072,0.144,3462.1,3462.0,2.88846965]
[1762577822268,2.88790012,3462.8,3462.7,0.4504]
[1762577822768,0.86981324,3463.1,3462.7,0.9275]
[1762577822955,0.002,3463.1,3463.0,0.4843]
[1762577823362,0.002,3463.1,3463.0,0.9614]
[1762577824475,0.002,3463.1,3463.0,4.23398381]
[1762577824681,0.002,3463.1,3463.0,4.2628605]
[1762577824983,0.002,3463.1,3463.0,4.23398381]
[1762577825152,0.002,3463.1,3463.0,4.2628605]
[1762577825354,0.002,3463.1,3463.0,4.23398381]
[1762577827887,0.02,3463.9,3463.8,2.88700271]
[1762577828187,0.02,3463.9,3463.8,3.85240298]
[1762577828485,0.02,3464.9,3464.1,0.405504]
[1762577828672,0.02,3464.9,3464.8,0.6767]
[1762577828872,0.02,3464.9,3464.8,3.56286947]
[1762577829053,0.02,3464.9,3464.8,4.68488776]
[1762577829250,0.02,3464.9,3464.8,4.83198776]
[1762577829986,0.02,3464.9,3464.8,1.79871829]
[1762577830192,0.02,3464.9,3464.8,4.03996947]
[1762577831782,0.022,3464.9,3464.8,4.03996947]
[1762577831986,0.022,3464.9,3464.8,1.1538]
[1762577832156,0.022,3464.9,3464.8,4.03996947]
[1762577834192,0.022,3464.9,3464.8,4.06883116]
[1762577834393,1e-08,3464.9,3464.8,4.75019581]
[1762577834793,1e-08,3464.9,3464.8,4.89419581]
[1762577835188,1e-08,3464.9,3464.8,5.29969981]
[1762577835580,1e-08,3464.9,3464.8,4.89419581]
[1762577836698,1e-08,3464.9,3464.8,4.75019581]
[1762577839116,1e-08,3464.9,3464.8,5.15569981]
[1762577840511,0.02,3465.9,3465.8,2.88533671]
[1762577840818,0.02,3465.9,3465.8,4.23527231]
[1762577841027,0.02,3465.9,3465.8,4.71237231]
[1762577846510,0.02,3465.9,3465.8,4.85637231]
[1762577851549,0.022,3465.9,3465.8,4.85637231]
[1762577852734,0.022,3465.9,3465.8,4.37927231]
[1762577853525,0.022,3465.9,3465.8,4.84447231]
[1762577854473,0.156,3465.9,3465.8,2.88533671]
[1762577854648,0.022,3465.9,3465.8,3.38343671]
[1762577855716,0.022,3465.9,3465.8,2.88533671]
[1762577857434,0.156,3465.9,3465.8,2.88533671]
[1762577859194,0.2831,3465.9,3465.8,2.88533671]
[1762577859736,0.2831,3465.9,3465.7,2.88539719]
[1762577859937,0.144,3465.8,3465.7,2.88539719]
[1762577860140,0.2808,3465.8,3465.7,2.88539719]
[1762577860855,0.002,3466.2,3465.9,2.88518374]
[1762577861042,0.002,3466.2,3466.1,3.57088698]
[1762577861242,0.002,3466.2,3465.7,0.57709797]
[1762577861438,0.002,3466.2,3466.1,2.88508698]
[1762577861874,0.136,3466.2,3465.9,2.88523958]
[1762577862092,0.1368,3466.0,3465.9,2.88523958]
[1762577864713,0.1368,3466.0,3465.3,0.001]
[1762577864894,0.1105,3465.9,3465.3,0.001]
[1762577865392,0.134,3465.8,3465.4,2.88565583]
[1762577865592,0.4118,3465.5,3465.4,2.88565583]
[1762577865763,0.4118,3465.5,3465.3,0.001]
[1762577866090,0.0041,3465.4,3465.3,0.001]
[1762577866693,0.1105,3465.9,3465.8,2.88533671]
[1762577866868,0.002,3466.2,3465.6,0.4835]
[1762577867073,0.002,3466.2,3465.8,2.88527397]
[1762577867268,0.002,3466.2,3466.1,2.88508698]
[1762577867493,0.002,3466.2,3466.1,3.55998698]
[1762577867793,0.002,3466.2,3466.1,4.72404024]
[1762577869577,0.002,3466.2,3466.1,4.01598938]
[1762577869773,0.136,3466.2,3466.0,2.88514084]
[1762577869979,0.136,3466.2,3466.1,2.88508698]
[1762577871036,0.28,3466.2,3466.1,2.88508698]
[1762577871541,0.28,3466.2,3465.6,0.6318]
[1762577871702,0.28,3466.2,3466.0,2.8851415]
[1762577871905,0.28,3466.2,3466.0,2.88515101]
[1762577872104,0.0041,3466.1,3465.6,0.144]
[1762577872338,0.144,3466.0,3465.5,2.88558649]
[1762577872637,0.134,3465.7,3465.6,2.88550323]
[1762577874759,0.1105,3465.9,3465.8,2.88533671]
[1762577875112,0.2445,3465.9,3465.8,2.88533671]
[1762577877048,0.2445,3465.9,3465.4,0.144]
[1762577877223,0.144,3465.7,3465.6,2.88543507]
[1762577877425,0.2808,3465.7,3465.6,2.88543507]
[1762577877623,0.2808,3465.7,3465.3,0.001]
[1762577877824,0.2808,3465.7,3465.5,2.88556819]
[1762577878651,0.2808,3465.7,3465.3,0.001]
[1762577879150,0.2808,3465.7,3465.5,2.88550837]
[1762577879725,0.144,3465.7,3465.6,3.36900323]
[1762577880155,0.144,3465.7,3465.3,0.001]
[1762577880156,0.8031,3465.7,3465.3,0.001]
[1762577880358,0.2767,3465.4,3465.3,0.001]
[1762577880926,0.144,3465.4,3465.3,3.37025303]
[1762577881124,0.144,3465.4,3465.3,0.001]
[1762577881636,0.144,3465.4,3465.3,2.88675303]
[1762577881962,0.144,3465.4,3465.3,3.37025303]
[1762577882127,0.144,3465.4,3465.3,3.85805303]
[1762577883227,0.144,3465.4,3465.3,3.83805303]
[1762577884339,0.144,3465.4,3465.3,3.37025303]
[1762577887671,0.278,3465.4,3465.3,0.001]
[1762577887875,0.5458,3465.4,3465.3,0.001]
[1762577888774,0.134,3465.4,3465.3,0.001]
[1762577891845,3.43146976,3465.4,3465.3,0.001]
[1762577892046,4.0631769,3465.4,3465.3,0.001]
[1762577893901,1.17750714,3465.4,3465.3,0.001]
[1762577894078,0.5458,3465.4,3465.3,0.001]
[1762577896486,3.43146976,3465.4,3465.3,0.001]
[1762577897088,3.83697376,3465.4,3465.3,0.001]
[1762577898881,0.134,3465.4,3465.3,0.001]
[1762577899271,0.1105,3465.9,3465.3,3.35704447]
[1762577899597,0.1105,3465.9,3465.3,0.4713]
[1762577899795,0.144,3465.4,3465.3,3.35704545]
[1762577899977,0.144,3465.4,3465.3,4.00114133]
[1762577900180,0.144,3465.4,3465.3,4.46894133]
[1762577900607,0.144,3465.4,3465.3,1.58319588]
[1762577901400,0.144,3465.4,3465.3,4.46894891]
[1762577903114,0.144,3465.4,3465.3,1.58319588]
[1762577903820,3.44426976,3465.4,3465.3,0.001]
[1762577903995,0.5486,3465.4,3465.3,0.001]
[1762577904345,3.43426976,3465.4,3465.3,0.001]
[1762577905809,3.83977376,3465.4,3465.3,0.001]
[1762577906314,4.51230208,3465.4,3465.3,0.001]
[1762577918004,4.96504418,3465.4,3465.3,0.001]
[1762577920327,9.22266999,3465.4,3465.3,0.001]
[1762577922233,3.29150688,3465.0,3464.9,0.001]
[1762577922434,8.87134976,3465.0,3464.9,0.001]
[1762577925980,3.29175677,3464.7,3464.6,0.001]
[1762577926159,3.42445677,3464.7,3464.6,0.001]
[1762577926366,3.83755677,3464.7,3464.6,0.001]
[1762577930152,3.29217336,3464.2,3464.1,0.02]
[1762577930350,8.17177407,3464.2,3464.1,0.02]
[1762577934369,2.88642078,3464.5,3464.1,0.9863]
[1762577934538,3.29192339,3464.5,3464.4,0.4852]
[1762577934938,3.29192339,3464.5,3464.4,0.9663]
[1762577935769,3.29192339,3464.5,3464.4,0.4852]
[1762577936178,4.25762581,3464.6,3464.4,0.4852]
[1762577936383,2.88666936,3464.2,3464.1,0.5011]
[1762577936676,2.88666936,3464.2,3464.1,0.02]
[1762577936884,2.88666936,3464.2,3464.1,0.5062]
[1762577937049,2.88666936,3464.2,3464.1,0.9873]
[1762577938753,2.88666084,3464.3,3464.1,0.9873]
[1762577938964,0.405504,3464.5,3464.3,0.4852]
[1762577939168,0.405504,3464.5,3464.4,0.4852]
[1762577939169,3.29192339,3464.5,3464.4,0.4852]
[1762577939543,3.29192339,3464.5,3464.4,0.9663]
[1762577941498,3.29192339,3464.5,3464.4,0.4852]
[1762577942062,0.405504,3464.5,3464.4,0.9663]
[1762577942268,3.29192339,3464.5,3464.4,0.9663]
[1762577942985,4.25962581,3464.6,3464.4,0.9663]
[1762577943182,4.25962581,3464.6,3464.1,0.021]
[1762577943183,4.25962581,3464.6,3464.5,0.9585]
[1762577943381,4.25962581,3464.6,3464.5,0.4809]
[1762577943783,7.14596189,3464.6,3464.5,0.4809]